bitfinex/quotes_SOLUSD_20220211
["timestamp","ask_amount","ask_price","bid_price","bid_amount"]
[1644568326608,14.1887,105.81,105.75,65.79081621]
[1644568327606,15.163,105.82,105.75,65.76681621]
[1644568327808,14.1873,105.82,105.75,73.17381621]
[1644568328007,14.1873,105.82,105.75,73.19781621]
[1644568328816,52.534231,105.81,105.75,7.431]
[1644568329013,14.1961,105.79,105.75,0.024]
[1644568329213,14.1961,105.79,105.67,79.3465]
[1644568329214,14.1961,105.79,105.73,0.024]
[1644568329414,14.1961,105.79,105.7,4.752]
[1644568329612,2.38366791,105.78,105.69,4.752]
[1644568329814,2.38366791,105.78,105.7,65.05896818]
[1644568330013,14.1947,105.77,105.71,0.024]
[1644568331015,14.1947,105.77,105.72,44.20605295]
[1644568331214,14.192,105.78,105.72,44.23005295]
[1644568331419,14.192,105.78,105.74,37.49273241]
[1644568333118,14.1904,105.79,105.74,37.49273241]
[1644568333318,14.1904,105.79,105.74,47.09273241]
[1644568335421,14.1904,105.79,105.74,9.6]
[1644568335620,2.38366791,105.78,105.74,0.024]
[1644568335823,2.38366791,105.78,105.73,22.6112]
[1644568335824,14.1945,105.77,105.73,22.6112]
[1644568336450,14.1945,105.77,105.73,59.21774524]
[1644568338049,14.1945,105.77,105.73,22.6112]
[1644568338853,14.1945,105.77,105.71,0.024]
[1644568339054,16.57816791,105.77,105.71,0.024]
[1644568339251,16.57816791,105.77,105.7,60.96917432]
[1644568339451,16.57816791,105.77,105.71,0.024]
[1644568341756,0.9754,105.76,105.71,0.024]
[1644568341957,14.1999,105.75,105.7,23.4764]
[1644568342157,16.58356791,105.75,105.7,23.4764]
[1644568342556,16.58356791,105.75,105.7,68.83409689]
[1644568342957,15.33832091,105.74,105.69,0.024]
[1644568343158,14.6868,105.73,105.67,0.024]
[1644568343359,17.07046791,105.73,105.66,0.024]
[1644568343559,3.36076791,105.72,105.66,0.024]
[1644568343959,2.38366791,105.71,105.66,0.024]
[1644568344168,2.38366791,105.71,105.65,46.47698665]
[1644568344764,16.58946791,105.71,105.65,46.47698665]
[1644568347768,16.58946791,105.71,105.65,51.20798665]
[1644568348267,16.58946791,105.71,105.65,46.47698665]
[1644568349668,16.58946791,105.71,105.65,1.0]
[1644568350670,16.58946791,105.71,105.65,44.3154232]
[1644568351775,16.58946791,105.71,105.65,44.3394232]
[1644568352772,30.60426791,105.71,105.65,44.3394232]
[1644568354474,30.60426791,105.71,105.65,1.024]
[1644568356898,31.57976791,105.71,105.65,1.024]
[1644568359401,31.57976791,105.71,105.65,1.0]
[1644568359598,56.30552091,105.7,105.65,1.0]
[1644568359800,65.962954,105.69,105.65,1.0]
[1644568360000,16.313251,105.68,105.65,1.0]
[1644568360500,51.753154,105.67,105.65,1.0]
[1644568360702,2.38366791,105.7,105.65,1.0]
[1644568360901,51.765967,105.69,105.65,1.0]
[1644568361205,14.2093,105.67,105.65,1.0]
[1644568362902,16.59296791,105.67,105.65,1.0]
[1644568363802,16.59296791,105.67,105.65,0.4491464]
[1644568364004,146.303558,105.66,105.55,4.732]
[1644568364204,14.2187,105.63,105.55,4.732]
[1644568364406,14.2187,105.63,105.51,1.429873]
[1644568364407,4.0,105.62,105.52,4.734]
[1644568364804,18.47359994,105.62,105.52,4.734]
[1644568365005,8.96101098,105.61,105.52,4.734]
[1644568365205,11.34467889,105.61,105.52,4.734]
[1644568365405,8.96101098,105.61,105.52,4.734]
[1644568365807,14.2215,105.59,105.52,4.734]
[1644568366007,14.2215,105.59,105.52,43.54648668]
[1644568366809,14.2154,105.61,105.52,60.39765459]
[1644568367008,14.2154,105.61,105.54,48.35379384]
[1644568367207,14.2154,105.61,105.56,43.71004133]
[1644568367807,14.346745,105.61,105.56,43.71004133]
[1644568368808,0.131345,105.61,105.56,43.71004133]
[1644568369009,0.131345,105.61,105.57,24.2785]
[1644568369208,0.131345,105.61,105.58,36.50857974]
[1644568369611,0.131345,105.61,105.59,6.06439994]
[1644568370411,0.131345,105.61,105.6,34.32504504]
[1644568371515,0.131345,105.61,105.59,6.06439994]
[1644568372713,0.131345,105.61,105.6,48.30061948]
[1644568377019,0.001345,105.61,105.59,52.57949994]
[1644568377421,0.001345,105.61,105.6,14.2077]
[1644568378523,0.001345,105.61,105.59,52.57949994]
[1644568379323,0.001345,105.61,105.6,0.024]
[1644568380324,0.001345,105.61,105.59,52.57949994]
[1644568381524,0.001345,105.61,105.59,52.60349994]
[1644568383027,0.001345,105.61,105.59,66.81249994]
[1644568383228,0.001345,105.61,105.59,66.78849994]
[1644568383827,0.001345,105.61,105.6,0.024]
[1644568384827,0.001345,105.61,105.6,14.2313]
[1644568385329,0.001345,105.61,105.6,0.024]
[1644568385926,0.001345,105.61,105.59,52.57949994]
[1644568386129,0.001345,105.61,105.59,52.60349994]
[1644568388732,0.001345,105.61,105.6,0.024]
[1644568390236,0.001345,105.61,105.59,6.06439994]
[1644568390436,0.001345,105.61,105.6,0.024]
[1644568390934,4.947859,105.61,105.56,0.024]
[1644568391136,4.735,105.6,105.56,39.2394161]
[1644568391344,14.2175,105.59,105.56,39.2394161]
[1644568391538,14.2175,105.59,105.57,3.03219997]
[1644568391934,14.2175,105.59,105.57,6.06439994]
[1644568392536,14.2175,105.59,105.57,3.03219997]
[1644568392833,14.2175,105.59,105.58,6.06439994]
[1644568393436,14.2156,105.6,105.58,6.06439994]
[1644568393636,0.001345,105.61,105.58,6.06439994]
[1644568393836,0.001345,105.61,105.58,6.08839994]
[1644568394034,0.001345,105.61,105.58,6.06439994]
[1644568394436,14.216045,105.61,105.58,6.06439994]
[1644568394836,14.216045,105.61,105.56,44.2209089]
[1644568395037,14.216045,105.61,105.56,44.1969089]
[1644568395237,14.216045,105.61,105.56,44.2209089]
[1644568395537,14.216045,105.61,105.56,0.024]
[1644568395739,14.216045,105.61,105.55,24.0345]
[1644568396340,14.216045,105.61,105.55,61.39640421]
[1644568401843,0.001345,105.61,105.56,3.71354091]
[1644568402142,0.001345,105.61,105.57,24.8953]
[1644568402343,0.001345,105.61,105.58,0.024]
[1644568402544,0.001345,105.61,105.59,6.06439994]
[1644568402843,0.001345,105.61,105.6,0.024]
[1644568403471,0.001345,105.61,105.6,24.6765]
[1644568403643,0.001345,105.61,105.6,24.6525]
[1644568405949,0.001345,105.61,105.6,24.6765]
[1644568409749,0.001345,105.61,105.6,0.024]
[1644568410353,4.735345,105.61,105.57,0.024]
[1644568410549,0.001345,105.61,105.55,23.8124]
[1644568410750,0.001345,105.61,105.56,0.024]
[1644568411353,4.735,105.6,105.56,0.024]
[1644568411554,14.2191,105.59,105.54,37.5721363]
[1644568411753,14.2191,105.59,105.54,37.5481363]
[1644568411953,14.2191,105.59,105.54,37.5721363]
[1644568414353,14.2191,105.59,105.54,0.024]
[1644568414556,14.2191,105.59,105.53,24.2101]
[1644568415156,14.2157,105.6,105.53,38.428]
[1644568415355,0.001345,105.61,105.54,4.76]
[1644568415557,0.001345,105.61,105.55,24.5721]
[1644568415756,0.001345,105.61,105.56,4.759]
[1644568415956,0.001345,105.61,105.57,48.2764]
[1644568416159,0.001345,105.61,105.58,0.024]
[1644568416556,0.001345,105.61,105.59,6.06439994]
[1644568416756,0.001345,105.61,105.6,0.024]
[1644568416957,0.001345,105.61,105.59,6.06439994]
[1644568417956,0.001345,105.61,105.59,6.08839994]
[1644568418365,0.001345,105.61,105.6,0.024]
[1644568418557,0.001345,105.61,105.6,8.802]
[1644568419964,0.001345,105.61,105.6,8.778]
[1644568420967,0.001345,105.61,105.6,22.9864]
[1644568425473,0.001345,105.61,105.6,8.778]
[1644568425676,0.001345,105.61,105.59,44.60109994]
[1644568426092,0.001345,105.61,105.6,2.38366791]
[1644568426293,0.001345,105.61,105.6,15.37466791]
[1644568426494,0.001345,105.61,105.6,29.57936791]
[1644568426690,0.001345,105.61,105.6,30.90924091]
[1644568426892,1.34116561,105.73,105.61,73.0]
[1644568427092,1.34116561,105.74,105.62,4.731]
[1644568427296,1.34116561,105.74,105.63,49.3865]
[1644568427492,1.34116561,105.74,105.63,59.88816791]
[1644568427692,14.1982,105.74,105.65,14.1995]
[1644568427893,16.58186791,105.74,105.66,23.5325]
[1644568428492,16.58186791,105.74,105.67,39.61368943]
[1644568428692,18.9301,105.73,105.67,39.61368943]
[1644568429993,14.2001,105.73,105.67,39.61368943]
[1644568431094,2.38366791,105.74,105.67,53.81178943]
[1644568431297,14.1981,105.75,105.67,53.81178943]
[1644568431494,4.73,105.76,105.67,53.81178943]
[1644568431695,28.09122953,105.78,105.67,53.81178943]
[1644568431696,22.06235518,105.78,105.67,58.79078943]
[1644568431895,7.11266791,105.78,105.67,58.79078943]
[1644568432095,7.11266791,105.78,105.67,54.06178943]
[1644568432495,14.1957,105.77,105.67,54.06178943]
[1644568432797,14.1957,105.77,105.68,46.6653]
[1644568432996,14.1957,105.77,105.69,14.1948]
[1644568433194,14.1957,105.77,105.7,42.20601258]
[1644568433895,16.57936791,105.77,105.7,42.20601258]
[1644568434800,14.1957,105.77,105.7,42.20601258]
[1644568436302,16.77677861,105.77,105.7,42.20601258]
[1644568436500,38.174667,105.76,105.7,42.20601258]
[1644568436702,14.198,105.75,105.7,42.20601258]
[1644568436901,36.106065,105.75,105.7,42.20601258]
[1644568437300,14.198,105.75,105.68,46.6653]
[1644568437502,4.729,105.74,105.68,46.6653]
[1644568438303,4.729,105.74,105.69,39.31837317]
[1644568438501,14.198,105.75,105.69,39.31837317]
[1644568439806,25.58428064,105.75,105.69,39.31837317]
[1644568440202,16.58166791,105.75,105.69,39.31837317]
[1644568442404,14.198,105.75,105.69,39.31837317]
[1644568446613,15.32701342,105.75,105.69,39.31837317]
[1644568446814,15.32701342,105.75,105.68,51.3943]
[1644568447010,15.32701342,105.75,105.68,46.6653]
[1644568447810,14.198,105.75,105.68,91.97185942]
[1644568449113,18.927,105.75,105.68,91.97185942]
[1644568449316,1.40182137,105.74,105.68,91.97185942]
[1644568449514,14.2,105.73,105.68,46.6653]
[1644568449713,18.929,105.73,105.63,4.729]
[1644568449917,21.31266791,105.73,105.63,0.25]
[1644568450114,14.2,105.73,105.64,4.731]
[1644568450313,14.2,105.73,105.64,4.981]
[1644568450715,16.58366791,105.73,105.64,4.731]
[1644568450918,4.731,105.72,105.62,4.731]
[1644568451116,14.205,105.7,105.62,4.731]
[1644568451316,14.205,105.7,105.61,46.426]
[1644568451515,4.732,105.69,105.61,46.426]
[1644568451916,6.87412126,105.69,105.61,93.89387675]
[1644568452115,11.504561,105.68,105.61,46.426]
[1644568452315,14.2104,105.66,105.61,46.426]
[1644568454419,4.733,105.65,105.6,0.024]
[1644568454620,14.2113,105.64,105.6,0.024]
[1644568454820,14.2113,105.64,105.57,0.024]
[1644568455025,14.2113,105.64,105.57,44.85557431]
[1644568455321,4.734,105.63,105.57,44.85557431]
[1644568455522,4.734,105.64,105.58,0.024]
[1644568456823,14.2142,105.62,105.58,0.024]
[1644568463050,14.2142,105.62,105.56,48.8384]
[1644568463849,16.57203592,105.62,105.56,48.8384]
[1644568464349,16.57203592,105.62,105.56,0.024]
[1644568465152,18.95570383,105.62,105.55,0.024]
[1644568466958,4.735,105.61,105.55,0.024]
[1644568467157,14.2188,105.6,105.55,0.024]
[1644568472863,0.4035022,105.59,105.55,0.024]
[1644568473063,0.4035022,105.59,105.51,19.0545]
[1644568473064,27.886989,105.58,105.53,0.024]
[1644568473263,27.886989,105.58,105.52,0.024]
[1644568473264,28.1083,105.58,105.52,0.024]
[1644568473464,30.49196791,105.58,105.52,0.024]
[1644568473766,28.1083,105.58,105.52,0.024]
[1644568474165,18.9573,105.58,105.52,0.024]
[1644568474563,14.2203,105.58,105.52,0.024]
[1644568475567,8.729187,105.57,105.52,0.024]
[1644568475768,14.2224,105.56,105.51,0.1]
[1644568475968,14.2224,105.56,105.51,0.124]
[1644568477570,14.2224,105.56,105.51,0.1]
[1644568477970,14.2224,105.56,105.48,19.67481272]
[1644568478369,14.2224,105.56,105.49,42.77364551]
[1644568478570,14.2224,105.56,105.5,14.2212]
[1644568478973,14.2224,105.56,105.49,42.77364551]
[1644568480071,2.85450434,105.55,105.49,42.77364551]
[1644568480270,14.2237,105.55,105.49,42.77364551]
[1644568480972,14.2237,105.55,105.49,65.63014551]
[1644568481273,4.738,105.57,105.49,66.97015823]
[1644568481473,2.21242308,105.57,105.5,4.737]
[1644568481774,52.1469,105.58,105.5,4.737]
[1644568481973,47.4099,105.58,105.49,71.70715823]
[1644568482171,14.2216,105.56,105.5,1.34001272]
[1644568482572,52.1385,105.6,105.5,1.34001272]
[1644568482774,47.4015,105.6,105.51,47.97559051]
[1644568483774,14.219,105.58,105.52,39.0621]
[1644568483976,14.219,105.58,105.53,41.34621676]
[1644568485877,14.219,105.58,105.52,26.18341272]
[1644568486377,14.219,105.58,105.51,1.34001272]
[1644568486378,14.2225,105.56,105.51,1.34001272]
[1644568486580,14.2225,105.56,105.5,26.24671272]
[1644568486778,14.2225,105.56,105.51,39.96134047]
[1644568487178,14.2225,105.56,105.5,24.9067]
[1644568488384,15.90021788,105.56,105.5,24.9067]
[1644568488589,18.9595,105.56,105.5,24.9067]
[1644568489786,21.34316791,105.56,105.49,22.5297]
[1644568489987,21.34316791,105.56,105.48,6.07701272]
[1644568490287,14.2298,105.53,105.48,4.737]
[1644568490487,14.2298,105.53,105.47,1.34001272]
[1644568490488,5.92614972,105.52,105.47,1.34001272]
[1644568490690,1.18714972,105.52,105.47,1.34001272]
[1644568490887,1.18714972,105.52,105.46,24.23991272]
[1644568491090,4.739,105.51,105.46,24.23991272]
[1644568491288,4.739,105.55,105.46,24.23991272]
[1644568491690,14.2305,105.51,105.46,24.23991272]
[1644568491887,14.2305,105.51,105.47,1.34001272]
[1644568492087,47.427,105.54,105.48,45.70410849]
[1644568492489,47.427,105.54,105.48,47.04412121]
[1644568492888,14.2251,105.53,105.48,47.04412121]
[1644568493088,14.2251,105.53,105.48,61.26862121]
[1644568493288,47.417,105.56,105.48,61.26862121]
[1644568493702,47.417,105.56,105.49,0.024]
[1644568493902,4.738,105.58,105.49,0.024]
[1644568494103,14.2225,105.55,105.49,39.40581272]
[1644568494304,14.2225,105.55,105.5,47.6368136]
[1644568494502,14.2225,105.55,105.5,48.95282632]
[1644568494703,14.2225,105.55,105.5,48.97682632]
[1644568494903,14.2225,105.55,105.5,47.6368136]
[1644568495704,14.2225,105.55,105.5,61.8587136]
[1644568496304,14.2225,105.55,105.5,47.6368136]
[1644568496503,14.2225,105.55,105.5,0.024]
[1644568496707,18.9605,105.55,105.48,1.34001272]
[1644568496907,14.2225,105.55,105.49,0.024]
[1644568497303,14.2225,105.55,105.49,1.36401272]
[1644568497505,14.2225,105.55,105.49,1.34001272]
[1644568497706,14.2225,105.55,105.48,1.36401272]
[1644568497907,14.2225,105.55,105.49,0.024]
[1644568498507,18.9605,105.55,105.49,0.024]
[1644568499905,14.2225,105.55,105.49,0.024]
[1644568500909,14.2264,105.53,105.49,0.024]
[1644568502209,14.2311,105.51,105.47,0.024]
[1644568502407,14.2311,105.51,105.46,1.34001272]
[1644568502610,14.2311,105.51,105.46,1.36401272]
[1644568503309,14.2311,105.51,105.46,0.024]
[1644568504509,14.2324,105.49,105.46,0.024]
[1644568504712,14.2324,105.49,105.44,25.78131272]
[1644568504913,9.80166131,105.52,105.44,25.78131272]
[1644568505112,4.95091772,105.56,105.45,1.36401272]
[1644568505310,27.3256,105.57,105.46,1.36401272]
[1644568505616,14.2269,105.53,105.47,1.36401272]
[1644568505914,14.2269,105.53,105.48,0.024]
[1644568506113,14.2269,105.53,105.48,39.88737519]
[1644568506313,27.3256,105.57,105.48,48.42737519]
[1644568506314,4.74,105.57,105.48,48.42737519]
[1644568506511,4.738,105.59,105.49,25.66306791]
[1644568506710,14.2222,105.56,105.5,0.024]
[1644568506911,4.737,105.6,105.5,4.761]
[1644568507111,1.34116561,105.62,105.51,43.93027009]
[1644568507112,10.68974519,105.61,105.51,43.93027009]
[1644568507314,47.4031,105.59,105.51,43.90627009]
[1644568507512,48.29704615,105.59,105.52,0.024]
[1644568507812,4.736,105.58,105.52,0.024]
[1644568508712,14.2203,105.57,105.52,0.024]
[1644568509112,23.74595574,105.57,105.52,0.024]
[1644568509312,14.2203,105.57,105.5,0.024]
[1644568510312,14.2203,105.57,105.5,43.20392454]
[1644568510514,14.2203,105.57,105.51,0.024]
[1644568510515,14.2244,105.55,105.51,0.024]
[1644568510715,4.737,105.54,105.5,0.024]
[1644568511113,4.738,105.55,105.49,4.737]
[1644568511315,4.738,105.53,105.48,0.024]
[1644568511514,9.67688715,105.53,105.48,0.024]
[1644568511713,14.2295,105.51,105.46,0.024]
[1644568512416,16.13630419,105.51,105.46,0.024]
[1644568513012,20.87630419,105.51,105.46,0.024]
[1644568513813,20.87630419,105.51,105.43,1.81407776]
[1644568513814,20.87630419,105.51,105.44,0.024]
[1644568520015,16.13630419,105.51,105.44,0.024]
[1644568521317,14.2351,105.49,105.44,0.024]
[1644568523118,6.08116561,105.56,105.44,2.40766791]
[1644568523319,4.74,105.56,105.45,4.764]
[1644568523522,6.08016561,105.57,105.46,0.024]
[1644568523718,6.08016561,105.57,105.46,48.8829]
[1644568523719,4.739,105.57,105.46,48.8829]
[1644568523919,9.55589854,105.56,105.47,36.80369233]
[1644568524119,14.2283,105.53,105.48,0.024]
[1644568524719,14.2283,105.53,105.47,0.024]
[1644568525420,14.2283,105.53,105.47,39.3072595]
[1644568528222,14.2251,105.54,105.47,41.69092741]
[1644568528422,14.2251,105.54,105.48,0.024]
[1644568530022,14.2237,105.55,105.48,14.2482]
[1644568530224,14.2237,105.55,105.49,0.024]
[1644568530426,4.738,105.57,105.49,0.024]
[1644568531022,52.1492,105.58,105.49,0.024]
[1644568531826,14.2226,105.56,105.49,14.2471]
[1644568532026,14.2226,105.56,105.5,0.024]
[1644568533126,14.2226,105.56,105.5,14.2455]
[1644568533326,2.38366791,105.6,105.5,14.2455]
[1644568533327,14.2206,105.57,105.5,14.2455]
[1644568533626,14.2206,105.57,105.51,0.024]
[1644568533829,14.2206,105.57,105.51,4.761]
[1644568534026,14.2206,105.57,105.52,39.46685642]
[1644568534626,14.2193,105.58,105.52,39.46685642]
[1644568535427,61.15611721,105.62,105.52,39.46685642]
[1644568535628,14.218,105.59,105.53,22.7946]
[1644568536331,14.218,105.59,105.53,23.0446]
[1644568536528,4.737,105.62,105.54,2.38366791]
[1644568536828,14.2155,105.61,105.54,16.59896791]
[1644568537028,14.2155,105.61,105.54,18.9503]
[1644568537631,14.2155,105.61,105.54,4.735]
[1644568538034,4.735,105.6,105.53,22.7946]
[1644568538229,14.2183,105.59,105.53,22.7946]
[1644568538833,4.736,105.58,105.53,22.7946]
[1644568539430,4.736,105.59,105.53,22.7946]
[1644568539833,14.2217,105.57,105.53,22.7946]
[1644568540231,14.2217,105.57,105.5,62.78994948]
[1644568540531,4.737,105.56,105.5,0.024]
[1644568540734,2.38366791,105.57,105.48,24.7095]
[1644568541031,4.738,105.55,105.49,0.024]
[1644568541229,4.738,105.56,105.49,0.024]
[1644568541431,4.738,105.56,105.49,41.58281095]
[1644568541633,4.738,105.56,105.5,0.024]
[1644568541831,14.2233,105.55,105.5,0.024]
[1644568555271,18.9613,105.55,105.5,0.024]
[1644568556671,14.2233,105.55,105.5,0.024]
[1644568558683,4.738,105.54,105.5,0.024]
[1644568558980,14.2266,105.53,105.48,24.7095]
[1644568559181,14.2266,105.53,105.48,24.6855]
[1644568559781,14.2266,105.53,105.48,24.7095]
[1644568563487,14.2237,105.54,105.48,0.024]
[1644568563688,14.2237,105.54,105.49,0.024]
[1644568563889,47.4122,105.57,105.49,0.024]
[1644568564889,14.2223,105.55,105.49,14.2463]
[1644568568789,14.2223,105.55,105.49,14.18764594]
[1644568569193,14.2223,105.55,105.49,15.52765866]
[1644568572796,14.2223,105.55,105.49,14.18764594]
[1644568573595,14.2223,105.55,105.49,15.52765866]
[1644568573796,52.1492,105.57,105.49,27.91432657]
[1644568573797,4.737,105.57,105.49,27.91432657]
[1644568573996,1.34116561,105.59,105.5,6.07701272]
[1644568574196,4.737,105.58,105.52,14.218]
[1644568574395,6.07816561,105.61,105.52,25.022]
[1644568574699,1.34116561,105.61,105.53,60.28354751]
[1644568575498,10.41145537,105.62,105.53,60.28354751]
[1644568575698,14.2173,105.59,105.54,14.2165]
[1644568579121,18.952,105.6,105.54,14.2165]
[1644568579321,14.216,105.6,105.54,14.2165]
[1644568583528,16.72768797,105.6,105.53,60.28354751]
[1644568583729,18.9538,105.59,105.53,74.50144751]
[1644568584233,18.9538,105.59,105.53,37.1487]
[1644568584431,18.9538,105.59,105.53,22.9308]
[1644568585231,21.33746791,105.59,105.53,22.9308]
[1644568587338,21.33746791,105.59,105.51,45.68251095]
[1644568587738,21.33746791,105.59,105.5,22.7069]
[1644568588840,21.33746791,105.59,105.5,65.53467809]
[1644568589742,21.33746791,105.59,105.49,24.1349]
[1644568589940,22.67863352,105.59,105.49,24.1349]
[1644568590741,22.67863352,105.59,105.5,47.33245219]
[1644568595345,15.55896561,105.59,105.5,70.21485219]
[1644568595745,14.2178,105.59,105.5,70.46485219]
[1644568595946,14.2178,105.59,105.51,22.8279]
[1644568597147,14.222,105.56,105.5,61.55455219]
[1644568600957,14.222,105.56,105.5,66.29155219]
[1644568602056,14.222,105.56,105.5,61.55455219]
[1644568603280,14.222,105.56,105.5,63.14456491]
[1644568606492,14.2203,105.57,105.5,74.33456491]
[1644568606692,1.34116561,105.61,105.51,6.07701272]
[1644568606898,1.34116561,105.61,105.54,14.2169]
[1644568607089,1.34116561,105.61,105.55,40.66858198]
[1644568607289,4.735,105.6,105.55,40.66858198]
[1644568607489,4.735,105.61,105.55,40.66858198]
[1644568607689,14.2169,105.6,105.55,40.66858198]
[1644568609893,14.2169,105.6,105.55,54.88418198]
[1644568611397,18.9503,105.61,105.55,54.88418198]
[1644568611596,8.45983352,105.63,105.55,65.80818198]
[1644568612497,8.4939548,105.63,105.55,65.80818198]
[1644568612797,14.2141,105.62,105.55,65.80818198]
[1644568612998,15.55526561,105.62,105.55,65.80818198]
[1644568613298,17.93893352,105.62,105.55,40.66858198]
[1644568613518,17.93893352,105.62,105.54,22.699]
[1644568613698,6.07616561,105.61,105.54,22.699]
[1644568613898,14.2192,105.59,105.54,22.699]
[1644568614297,18.9552,105.59,105.54,22.699]
[1644568614503,18.9552,105.59,105.54,63.67914142]
[1644568616202,14.2192,105.59,105.54,63.67914142]
[1644568617501,14.2165,105.6,105.54,63.67914142]
[1644568618802,13.7165,105.6,105.54,77.89594142]
[1644568620005,6.11128689,105.63,105.54,77.89594142]
[1644568620205,6.11028689,105.64,105.54,77.89594142]
[1644568620406,0.03412128,105.62,105.54,82.63094142]
[1644568621709,14.24812128,105.62,105.54,82.63094142]
[1644568621908,0.03412128,105.61,105.54,82.63094142]
[1644568622708,14.24922128,105.61,105.54,82.63094142]
[1644568622910,14.2151,105.61,105.54,22.699]
[1644568623110,14.24922128,105.61,105.52,25.76011272]
[1644568623310,4.736,105.6,105.53,23.7445]
[1644568623912,4.736,105.6,105.54,36.92513528]
[1644568624313,14.2193,105.58,105.54,36.92513528]
[1644568629632,14.2193,105.58,105.53,23.7445]
[1644568630633,14.2193,105.58,105.54,41.30949389]
[1644568631934,14.2193,105.58,105.52,24.4201]
[1644568632133,2.38366791,105.57,105.5,1.36401272]
[1644568632337,14.2235,105.55,105.5,1.36401272]
[1644568632536,14.2235,105.55,105.49,1.34001272]
[1644568632734,14.2235,105.55,105.49,1.36401272]
[1644568632935,14.2235,105.55,105.5,38.28147709]
[1644568633134,14.2235,105.55,105.5,38.30547709]
[1644568635636,14.2235,105.55,105.5,38.28147709]
[1644568635935,14.2235,105.55,105.5,38.30547709]
[1644568643746,14.2235,105.55,105.5,0.024]
[1644568643947,23.0935,105.55,105.5,0.024]
[1644568644349,23.0935,105.55,105.48,0.024]
[1644568644350,14.2278,105.53,105.48,0.024]
[1644568644548,14.2278,105.53,105.47,0.024]
[1644568644749,14.2278,105.53,105.47,40.06906056]
[1644568648052,14.2241,105.55,105.48,4.739]
[1644568648254,4.739,105.57,105.49,23.9026]
[1644568648452,0.03412128,105.58,105.49,23.9266]
[1644568648653,8.98846446,105.58,105.5,0.024]
[1644568648853,4.737,105.57,105.5,0.024]
[1644568649252,14.2218,105.56,105.5,0.024]
[1644568651151,4.737,105.55,105.5,0.024]
[1644568651355,14.2247,105.54,105.5,0.024]
[1644568652352,14.2247,105.54,105.49,23.9026]
[1644568652555,14.2247,105.54,105.49,23.9266]
[1644568652753,16.85404816,105.54,105.49,23.9266]
[1644568653356,51.12166791,105.53,105.47,4.737]
[1644568653556,14.2303,105.52,105.47,4.737]
[1644568653755,4.739,105.51,105.47,4.737]
[1644568653957,12.799,105.51,105.47,4.737]
[1644568654256,8.4822935,105.5,105.47,4.737]
[1644568654456,10.86596141,105.5,105.47,4.737]
[1644568654858,14.2348,105.48,105.47,4.737]
[1644568655255,14.2348,105.48,105.43,29.99706504]
[1644568655656,14.3622,105.54,105.43,29.99706504]
[1644568655858,14.3622,105.54,105.43,44.47806504]
[1644568655859,14.2285,105.51,105.43,44.47806504]
[1644568656057,14.2285,105.51,105.44,1.34001272]
[1644568656259,14.2285,105.51,105.44,1.59001272]
[1644568656460,14.2285,105.51,105.44,3.72368063]
[1644568656659,14.2285,105.51,105.44,1.34001272]
[1644568656859,14.2285,105.51,105.43,31.33707776]
[1644568657059,14.2285,105.51,105.43,31.58707776]
[1644568657259,14.2285,105.51,105.43,33.72074567]
[1644568657661,14.2285,105.51,105.44,1.34001272]
[1644568657962,14.2285,105.51,105.46,45.6679536]
[1644568664169,16.61216791,105.51,105.43,6.55407776]
[1644568664369,16.61216791,105.51,105.43,5.21406504]
[1644568664571,14.2285,105.51,105.43,2.85773295]
[1644568664770,14.2285,105.51,105.43,4.19774567]
[1644568664968,14.2285,105.51,105.44,23.1056]
[1644568665170,14.2285,105.51,105.44,66.23432234]
[1644568665870,14.2285,105.51,105.44,64.89430962]
[1644568666069,4.74,105.53,105.44,91.96192234]